bitfinex/quotes_ETHUSD_20250807
["timestamp","ask_amount","ask_price","bid_price","bid_amount"]
[1754583980393,0.24338599,3835.6,3835.5,3.064522]
[1754583980726,0.24338197,3835.9,3835.8,5.60701809]
[1754583981091,0.24338197,3835.9,3835.8,6.63361809]
[1754583981537,0.24338197,3835.9,3835.8,5.73741809]
[1754583981706,0.48672421,3835.9,3835.8,5.73741809]
[1754583982235,0.24338197,3835.9,3835.8,6.19471809]
[1754583982878,0.48671387,3835.9,3835.8,2.73741809]
[1754583983044,0.48671387,3835.9,3835.8,3.19471809]
[1754583983744,0.48667988,3835.9,3835.8,2.73741809]
[1754583985178,0.48667988,3835.9,3835.8,0.1304]
[1754583985476,1.83814787,3835.9,3835.6,3.0]
[1754583985678,0.4453,3835.8,3835.6,3.0]
[1754583985877,4.029,3835.7,3835.6,3.0]
[1754583986079,4.029,3835.7,3835.4,0.1304]
[1754583986080,4.7175634,3835.7,3835.4,0.1304]
[1754583986311,0.68854302,3835.6,3835.4,0.1304]
[1754583986590,0.24324339,3835.5,3835.4,0.1304]
[1754583986951,0.68853391,3835.5,3835.4,2.73768998]
[1754583987180,4.4833,3835.7,3835.4,2.73768998]
[1754583987181,4.029,3835.7,3835.4,0.1304]
[1754583987372,4.029,3835.7,3835.5,2.60716979]
[1754583987568,0.24323826,3835.6,3835.5,2.60716979]
[1754583988368,0.24323826,3835.6,3835.5,7.10228678]
[1754583988572,0.24338197,3835.9,3835.8,5.60701809]
[1754583988890,0.24338197,3835.9,3835.8,9.64101809]
[1754583989087,0.24338197,3835.9,3835.8,9.77141809]
[1754583989268,0.24338197,3835.9,3835.8,10.68621809]
[1754583989454,0.24338197,3835.9,3835.8,12.33429869]
[1754583989651,0.24338197,3835.9,3835.8,7.38549869]
[1754583989874,0.24338197,3835.9,3835.8,2.73741809]
[1754583990288,0.24338197,3835.9,3835.8,3.18751809]
[1754583990889,0.24338197,3835.9,3835.8,7.55581809]
[1754583991088,0.24338197,3835.9,3835.8,10.68621809]
[1754583992195,0.24338197,3835.9,3835.8,6.18751809]
[1754583992366,0.24338197,3835.9,3835.8,3.1304]
[1754583992573,1.13448197,3835.9,3835.8,3.1304]
[1754583992893,1.37755984,3835.9,3835.5,4.033]
[1754583993091,0.433,3835.8,3835.6,2.73753955]
[1754583993690,0.433,3835.8,3835.7,2.60708605]
[1754583993898,0.24338197,3835.9,3835.8,2.60701809]
[1754583994087,0.4864812,3835.9,3835.8,3.05711809]
[1754583994289,0.24338197,3835.9,3835.8,2.73741809]
[1754583994464,0.48648911,3835.9,3835.8,0.1304]
[1754583994665,0.48648911,3835.9,3835.8,2.73741809]
[1754583994863,0.24338197,3835.9,3835.8,2.73741809]
[1754583995192,0.24338197,3835.9,3835.8,4.58997506]
[1754583995907,0.24338197,3835.9,3835.8,7.58997506]
[1754583998585,0.24338197,3835.9,3835.8,7.78655797]
[1754584000268,0.24338197,3835.9,3835.8,11.35185797]
[1754584000669,0.24338197,3835.9,3835.8,11.81655797]
[1754584002913,0.24338197,3835.9,3835.8,16.08655797]
[1754584003323,1e-08,3835.9,3835.8,16.08655797]
[1754584003878,1e-08,3835.9,3835.8,16.08755797]
[1754584004123,1e-08,3835.9,3835.8,16.63755797]
[1754584005914,1e-08,3835.9,3835.8,11.59285797]
[1754584006084,1e-08,3835.9,3835.8,11.14275797]
[1754584006285,1e-08,3835.9,3835.8,15.17075797]
[1754584006479,1e-08,3835.9,3835.8,15.62085797]
[1754584006683,1e-08,3835.9,3835.8,15.17075797]
[1754584007188,1e-08,3835.9,3835.8,15.62085797]
[1754584007718,1e-08,3835.9,3835.8,16.08555797]
[1754584008090,1e-08,3835.9,3835.8,15.95515797]
[1754584008618,1e-08,3835.9,3835.8,16.08555797]
[1754584008783,1e-08,3835.9,3835.8,15.62085797]
[1754584009620,1e-08,3835.9,3835.8,16.08555797]
[1754584010205,1e-08,3835.9,3835.8,29.11118035]
[1754584010722,1e-08,3836.4,3836.3,2.6066783]
[1754584010891,1e-08,3836.6,3836.5,5.60654242]
[1754584011090,1e-08,3836.6,3836.5,9.63354242]
[1754584011290,1e-08,3836.6,3836.5,12.4478217]
[1754584011518,1e-08,3836.6,3836.5,13.3626217]
[1754584011924,1e-08,3836.6,3836.5,12.8979217]
[1754584012095,1e-08,3836.6,3836.5,10.21404242]
[1754584014136,1e-08,3836.6,3836.5,10.21104242]
[1754584014292,1e-08,3836.6,3836.5,5.73694242]
[1754584014631,0.43300001,3836.6,3836.5,5.60654242]
[1754584015340,1e-08,3836.6,3836.5,5.60654242]
[1754584015515,1e-08,3836.6,3836.5,11.30435895]
[1754584016027,1e-08,3836.6,3836.5,10.85425895]
[1754584017028,0.43300001,3836.6,3836.5,10.85425895]
[1754584018125,1e-08,3836.6,3836.5,10.85425895]
[1754584018827,0.47480001,3836.6,3836.5,10.85425895]
[1754584019328,1e-08,3836.6,3836.5,7.85425895]
[1754584020417,1e-08,3836.6,3836.5,3.83025895]
[1754584020610,0.47480001,3836.6,3836.5,6.62854242]
[1754584020806,1e-08,3836.6,3836.5,6.62854242]
[1754584021341,1e-08,3836.6,3835.8,0.19758291]
[1754584021342,0.96290001,3836.6,3835.8,0.19758291]
[1754584021520,0.9629,3836.5,3836.3,2.60664709]
[1754584021694,0.9629,3836.4,3835.8,0.001]
[1754584021894,0.9629,3836.3,3836.1,2.60677163]
[1754584022102,0.9629,3836.2,3835.8,0.001]
[1754584022304,2.60688216,3836.0,3835.8,0.001]
[1754584022823,0.9629,3835.9,3835.8,0.001]
[1754584024433,1.0933,3835.9,3835.8,0.001]
[1754584024924,1.876604,3835.9,3835.8,0.001]
[1754584025639,0.4748,3835.9,3835.8,0.001]
[1754584025825,0.9649,3835.9,3835.8,0.001]
[1754584026001,1.52614615,3835.9,3835.8,0.001]
[1754584026206,1.2831538,3835.9,3835.8,0.001]
[1754584026899,3.89010392,3835.9,3835.8,0.001]
[1754584027099,1.2831538,3835.9,3835.8,0.001]
[1754584028007,2.0664818,3835.9,3835.8,0.001]
[1754584028207,4.67343192,3835.9,3835.8,0.001]
[1754584028505,8.46634103,3835.9,3835.8,0.001]
[1754584028704,22.05169406,3835.9,3835.8,0.001]
[1754584030638,21.80878495,3835.9,3835.8,0.001]
[1754584030839,22.05152392,3835.9,3835.8,0.001]
[1754584031538,26.07252392,3835.9,3835.8,0.001]
[1754584032843,12.36650154,3835.9,3835.8,0.001]
[1754584033045,4.91617089,3835.9,3835.8,0.001]
[1754584033343,9.48689687,3835.9,3835.8,0.001]
[1754584033532,12.48689687,3835.9,3835.8,0.001]
[1754584034745,12.46689687,3835.9,3835.8,0.001]
[1754584035943,8.44589687,3835.9,3835.8,0.001]
[1754584036338,12.46689687,3835.9,3835.8,0.001]
[1754584036544,8.44579831,3835.9,3835.8,0.001]
[1754584036715,12.46679831,3835.9,3835.8,0.001]
[1754584037046,13.02568626,3835.9,3835.8,0.001]
[1754584037573,13.02541962,3835.9,3835.8,0.001]
[1754584038044,9.4765695,3835.9,3835.8,0.001]
[1754584038250,11.34566582,3835.9,3835.8,0.001]
[1754584038449,7.32366582,3835.9,3835.8,0.001]
[1754584038745,11.82046582,3835.9,3835.8,0.001]
[1754584038925,12.30856582,3835.9,3835.8,0.001]
[1754584039124,12.06619943,3835.9,3835.8,0.001]
[1754584039528,11.57809943,3835.9,3835.8,0.001]
[1754584039723,12.99659237,3835.9,3835.8,0.001]
[1754584041018,4.937728,3835.9,3835.8,0.001]
[1754584041224,4.937728,3835.9,3835.8,0.4968]
[1754584041436,4.1544,3835.9,3835.8,0.4968]
[1754584041819,6.76135012,3835.9,3835.8,0.001]
[1754584042028,4.1544,3835.9,3835.8,0.001]
[1754584043440,5.20910939,3835.9,3835.8,0.001]
[1754584043772,4.6502,3835.9,3835.8,0.001]
[1754584044334,5.20934402,3835.9,3835.8,0.001]
[1754584044549,4.6502,3835.9,3835.8,0.001]
[1754584045469,5.20934402,3835.9,3835.8,0.001]
[1754584045773,4.6502,3835.9,3835.8,0.001]
[1754584046870,0.6282,3835.9,3835.8,0.001]
[1754584047072,4.1534,3835.9,3835.8,0.9502]
[1754584047436,4.1534,3835.9,3835.8,1.56664655]
[1754584048262,4.1534,3835.9,3835.8,0.9502]
[1754584048972,4.023,3835.9,3835.8,3.53871809]
[1754584049144,4.023,3835.9,3835.8,0.9317]
[1754584049344,4.023,3835.9,3835.8,3.53871809]
[1754584049543,4.023,3835.9,3835.8,0.9317]
[1754584049956,4.023,3835.9,3835.8,0.4968]
[1754584051399,4.023,3835.9,3835.8,0.001]
[1754584051539,4.1534,3835.9,3835.8,0.001]
[1754584051742,0.002,3835.9,3835.8,3.51321809]
[1754584051977,4.023,3835.9,3835.8,4.12524963]
[1754584052193,0.002,3835.9,3835.8,4.12524963]
[1754584052342,0.002,3835.9,3835.8,4.25564963]
[1754584053197,0.002,3835.9,3835.8,7.25564963]
[1754584053763,0.002,3835.9,3835.8,7.12524963]
[1754584053953,0.002,3835.9,3835.8,7.25564963]
[1754584058391,0.002,3835.9,3835.8,11.27564963]
[1754584059626,1e-08,3835.9,3835.8,11.27564963]
[1754584060728,1e-08,3835.9,3835.8,21.55378861]
[1754584061411,1e-08,3835.9,3835.8,11.27564963]
[1754584062228,1e-08,3835.9,3835.8,15.54564963]
[1754584063826,1e-08,3835.9,3835.8,15.54464963]
[1754584067535,1e-08,3835.9,3835.8,15.49464963]
[1754584070632,0.10637846,3837.1,3837.0,2.60620276]
[1754584070834,0.002,3837.2,3837.0,2.60620276]
[1754584070997,0.002,3837.2,3837.1,2.60613484]
[1754584071846,0.4795,3837.2,3837.1,2.60613484]
[1754584072543,0.9252,3837.2,3837.1,2.60613484]
[1754584073649,0.4477,3837.2,3837.1,2.60613484]
[1754584074561,0.002,3837.2,3837.1,2.60613484]
[1754584074735,0.002,3837.2,3837.1,3.77510409]
[1754584075255,0.002,3837.2,3837.1,4.21000409]
[1754584076146,0.002,3837.2,3837.1,3.77510409]
[1754584083566,0.002,3837.2,3837.1,3.30480409]
[1754584083762,0.002,3837.2,3837.1,2.73653484]
[1754584088293,0.002,3837.2,3837.1,3.19203484]
[1754584089677,0.002,3837.2,3837.1,3.63743484]
[1754584090030,0.002,3837.2,3837.1,3.19203484]
[1754584090212,0.002,3837.2,3837.1,3.63743484]
[1754584090414,0.002,3837.2,3837.1,10.39062699]
[1754584091811,0.002,3837.6,3837.5,2.60586319]
[1754584092220,0.002,3837.6,3837.5,2.73626319]
[1754584092513,0.002,3837.6,3837.5,7.65316319]
[1754584095502,0.002,3837.6,3837.5,2.73626319]
[1754584095703,0.4723,3837.6,3837.5,2.73626319]
[1754584095947,0.002,3837.6,3837.5,2.73626319]
[1754584096241,0.002,3837.6,3837.5,13.91133021]
[1754584096442,0.002,3837.6,3837.5,18.4605508]
[1754584096804,0.002,3837.6,3837.5,21.4605508]
[1754584101240,0.002,3838.0,3837.9,12.87975861]
[1754584101407,0.002,3838.0,3837.9,18.44330166]
[1754584101604,1e-08,3838.0,3837.9,22.47460166]
[1754584106714,1e-08,3838.4,3838.3,2.60532006]
[1754584106915,1e-08,3838.4,3838.3,17.04894028]
[1754584107221,1e-08,3838.4,3838.3,17.92378708]
[1754584107551,1e-08,3838.4,3838.3,19.98829348]
[1754584109735,1e-08,3838.4,3838.3,9.06219115]
[1754584109930,1e-08,3838.4,3838.3,19.33635817]
[1754584110738,1e-08,3838.4,3838.3,19.82275817]
[1754584111029,1e-08,3838.4,3838.3,20.13395817]
[1754584111238,1e-08,3838.4,3838.3,20.26435817]
[1754584111552,1e-08,3838.4,3838.3,23.4647437]
[1754584111927,1e-08,3838.4,3838.3,13.19057668]
[1754584112128,1e-08,3838.4,3838.3,23.4647437]
[1754584112939,0.002,3839.2,3839.1,2.60477716]
[1754584113228,0.002,3839.2,3839.1,17.02134418]
[1754584113425,0.002,3839.2,3839.1,20.50774418]
[1754584113772,0.002,3839.2,3839.1,20.02134418]
[1754584114149,0.002,3839.2,3839.1,5.73517716]
[1754584114345,0.002,3839.2,3839.1,9.74717716]
[1754584114666,0.922,3839.2,3839.1,9.74717716]
[1754584115397,0.922,3839.2,3839.1,2.60477716]
[1754584117391,0.002,3839.2,3839.1,2.60477716]
[1754584117553,0.922,3839.2,3839.1,6.61677716]
[1754584118393,0.002,3839.2,3839.1,6.61677716]
[1754584119314,0.002,3839.2,3839.1,7.60062061]
[1754584119600,0.002,3839.2,3839.1,8.21742061]
[1754584119810,0.002,3839.2,3839.1,7.73102061]
[1754584119959,0.002,3839.2,3839.1,8.21742061]
[1754584120161,0.002,3839.2,3839.1,8.65902061]
[1754584120569,0.002,3839.2,3839.1,8.21742061]
[1754584120770,0.002,3839.2,3839.1,7.73102061]
[1754584121924,0.4417,3839.2,3839.1,6.74617716]
[1754584122131,0.922,3839.2,3839.1,6.74617716]
[1754584122628,0.002,3839.2,3839.1,6.74617716]
[1754584124304,0.002,3839.2,3839.1,7.23257716]
[1754584124507,0.002,3839.2,3839.1,8.80149732]
[1754584125464,0.002,3839.2,3839.1,6.74617716]
[1754584126417,0.002,3839.2,3839.1,2.73517716]
[1754584128507,0.922,3839.2,3839.1,2.73517716]
[1754584128889,0.922,3839.2,3839.0,2.6048389]
[1754584129094,0.002,3839.2,3839.1,2.60477716]
[1754584129788,0.922,3839.2,3839.1,2.60477716]
[1754584130620,0.002,3839.2,3839.1,2.60477716]
[1754584131326,0.922,3839.2,3839.1,2.60477716]
[1754584131625,0.002,3839.2,3839.1,2.60477716]
[1754584133043,0.002,3839.2,3839.1,7.10117716]
[1754584133322,0.002,3839.2,3839.1,7.23157716]
[1754584136645,0.002,3839.2,3839.1,6.74517716]
[1754584137437,0.002,3839.2,3839.1,7.23157716]
[1754584137590,0.002,3839.2,3839.1,3.22157716]
[1754584137786,0.002,3839.2,3839.1,2.73517716]
[1754584138046,0.002,3839.2,3839.1,3.66317716]
[1754584138235,0.002,3839.2,3839.1,2.73517716]
[1754584138394,0.002,3839.2,3839.1,3.23487716]
[1754584139015,0.002,3839.2,3839.1,2.73517716]
[1754584139732,0.4789,3839.2,3839.1,0.1304]
[1754584139931,0.9117,3839.2,3838.3,0.001]
[1754584140234,0.9117,3839.2,3838.7,0.1304]
[1754584140400,0.4769,3839.1,3839.0,2.60479465]
[1754584140600,0.9097,3839.1,3839.0,2.60479465]
[1754584140795,0.9097,3839.1,3839.0,2.60484501]
[1754584141599,0.9097,3839.1,3838.9,2.60489591]
[1754584142128,0.9097,3839.1,3838.7,6.74444539]
[1754584142129,0.9097,3839.1,3839.0,2.60484501]
[1754584142433,1.47198627,3839.1,3839.0,2.60484501]
[1754584142606,0.56228627,3839.1,3839.0,2.60484501]
[1754584142805,0.56228627,3839.1,3838.9,2.60488787]
[1754584143045,0.002,3839.2,3838.9,2.60488787]
[1754584143221,0.5622719,3839.1,3838.9,2.60488787]
[1754584143424,0.9117,3839.2,3839.0,2.60480997]
[1754584143625,0.56219774,3839.1,3839.0,2.60480997]
[1754584143823,0.56219774,3839.1,3838.9,2.60489132]
[1754584144025,0.9097,3839.1,3838.9,2.60489132]
[1754584144438,0.9097,3839.1,3839.0,2.60484501]
[1754584144615,0.99496706,3839.1,3839.0,2.60484501]
[1754584144814,0.56216706,3839.1,3839.0,2.60484501]
[1754584145622,0.002,3839.2,3839.1,2.60477716]
[1754584145837,0.56406073,3839.2,3839.1,2.60477716]
[1754584146144,0.002,3839.2,3839.1,2.60477716]
[1754584146546,0.002,3839.2,3839.1,3.10447716]
[1754584147646,0.002,3839.2,3839.1,3.69007716]
[1754584148349,0.002,3839.2,3839.1,8.227788]
[1754584149839,0.002,3839.2,3839.1,7.772588]
[1754584151943,0.002,3839.2,3839.1,8.227788]
[1754584154626,0.002,3839.2,3839.1,7.772588]
[1754584156623,0.002,3839.2,3839.1,8.227788]
[1754584159837,0.002,3839.2,3839.1,7.772588]
[1754584160164,0.002,3839.2,3839.1,8.227788]
[1754584160659,0.002,3839.2,3839.1,7.772588]
[1754584160963,0.002,3839.2,3839.1,7.272888]
[1754584163093,0.002,3839.2,3839.1,3.264888]
[1754584166065,0.002,3839.2,3839.1,3.764588]
[1754584166231,0.002,3839.2,3839.1,3.264888]
[1754584166631,0.002,3839.2,3839.1,2.73517716]
[1754584168179,0.002,3839.2,3838.4,0.13684761]
[1754584168386,0.4478,3839.2,3838.5,4.006]
[1754584168666,0.9244,3839.2,3838.9,2.60488383]
[1754584169552,0.9244,3839.2,3839.0,2.60483624]
[1754584169759,0.9244,3839.2,3838.9,2.60489712]
[1754584169959,0.9224,3839.1,3838.9,2.60489712]
[1754584170972,0.9224,3839.0,3838.5,3.08387907]
[1754584171274,0.9224,3839.0,3838.7,2.60500288]
[1754584172376,0.9224,3838.9,3838.4,2.74208411]
[1754584172553,1.29479517,3838.8,3838.4,0.13684761]
[1754584172754,1.27512377,3838.8,3838.4,0.001]
[1754584173047,3.52751112,3838.7,3838.4,0.001]
[1754584173373,15.4224,3838.7,3838.4,0.001]
[1754584173681,3.60627928,3838.6,3838.4,0.001]
[1754584173975,13.82142273,3838.5,3838.4,0.001]
[1754584174172,14.91377368,3838.5,3838.4,0.001]
[1754584174375,17.91377368,3838.5,3838.4,0.001]
[1754584177486,17.91287398,3838.5,3838.4,0.001]
[1754584177650,22.45928054,3838.5,3838.4,0.001]
[1754584178289,22.58968054,3838.5,3838.4,0.001]
[1754584181951,3.15545582,3838.1,3838.0,0.001]
[1754584182284,6.15579528,3837.6,3837.5,0.001]
[1754584182490,21.12648495,3837.6,3837.5,0.001]
[1754584182668,22.04888495,3837.6,3837.5,0.001]
[1754584183083,22.15331495,3837.6,3837.5,0.001]
[1754584186490,5.605999,3837.3,3837.2,0.001]
[1754584186789,23.81156795,3837.3,3837.2,0.001]
[1754584187180,24.83840195,3837.3,3837.2,0.001]
[1754584188780,39.33840195,3837.3,3837.2,0.001]
[1754584191813,24.13583493,3837.3,3837.2,0.001]
[1754584192008,28.14183493,3837.3,3837.2,0.4797]
[1754584192212,28.14183493,3837.3,3837.2,0.001]
[1754584194521,29.06423493,3837.3,3837.2,0.001]
[1754584196898,6.15606692,3837.2,3837.1,0.001]
[1754584197101,8.18099613,3837.2,3837.1,0.001]
[1754584197344,11.26359613,3837.2,3837.1,0.001]
[1754584197516,21.53776315,3837.2,3837.1,0.001]
[1754584197711,36.27972947,3837.2,3837.1,0.001]
[1754584198164,6.15627068,3836.9,3836.4,0.001]
[1754584198309,20.99656035,3836.9,3836.4,0.001]
[1754584198512,22.06076035,3836.9,3836.4,0.001]
[1754584198737,35.62696035,3836.9,3836.4,0.001]
[1754584198917,35.62696035,3836.9,3836.5,0.4953]
[1754584199121,35.86901081,3836.9,3836.5,0.4953]
[1754584199352,36.22173545,3836.9,3836.5,0.4953]
[1754584199550,36.22173545,3836.9,3836.4,0.001]
[1754584199723,36.22173545,3836.9,3836.8,0.4963]
[1754584200329,36.71803545,3836.9,3836.8,0.001]
[1754584200758,37.20733545,3836.9,3836.8,0.001]
[1754584201068,37.65183545,3836.9,3836.8,0.001]
[1754584201545,37.65229254,3836.9,3836.8,0.001]
[1754584203324,2.60654242,3836.5,3836.4,0.001]
[1754584203522,21.36114707,3836.5,3836.4,0.001]
[1754584204162,36.64453407,3836.5,3836.4,0.001]
[1754584204371,36.64477076,3836.5,3836.4,0.001]
[1754584204573,39.38977076,3836.5,3836.4,0.001]
[1754584204864,26.37060374,3836.5,3836.4,0.4963]
[1754584205162,36.64488196,3836.5,3836.4,0.9331]
[1754584205332,32.5180754,3836.5,3836.4,0.9331]
[1754584205538,35.8700884,3836.5,3836.4,0.9331]
[1754584206249,21.04092138,3836.5,3836.4,0.9331]
[1754584206450,25.04592138,3836.5,3836.4,0.9331]
[1754584206860,19.06612265,3836.5,3836.4,0.9331]
[1754584207021,4.005,3836.5,3836.4,3.53971036]
[1754584207223,4.005,3836.5,3836.4,1.56078434]
[1754584207224,3.505,3836.5,3836.4,1.56078434]
[1754584207424,0.1304,3836.9,3836.8,2.60633861]
[1754584207772,4.56558519,3836.9,3836.8,2.60633861]
[1754584207935,4.56558519,3836.9,3836.8,3.53843861]
[1754584208136,4.56560474,3836.9,3836.8,3.53843861]
[1754584208388,4.005,3837.3,3837.1,2.60613484]
[1754584208588,4.005,3837.3,3837.2,3.10136692]
[1754584208803,4.005,3837.3,3837.2,3.53816692]
[1754584213235,4.006,3837.6,3837.5,2.60586319]
[1754584213383,0.002,3837.6,3837.5,11.20626702]
[1754584213590,0.002,3837.6,3837.5,4.78898989]
[1754584216120,0.002,3837.6,3837.1,0.9321]
[1754584216445,0.1304,3837.4,3837.1,0.9321]
[1754584216617,14.6304,3837.4,3837.1,0.9321]
[1754584216820,14.6304,3837.4,3837.2,0.9321]
[1754584217337,14.6304,3837.4,3836.8,0.1304]
[1754584217637,0.1304,3837.1,3836.9,3.53836148]
[1754584217823,4.003,3837.0,3836.9,2.60626148]
[1754584218402,4.003,3837.0,3836.9,3.53836148]
[1754584219150,4.003,3837.0,3836.9,3.53837068]
[1754584219301,4.4923,3837.0,3836.8,0.001]
[1754584219508,6.67047068,3836.9,3836.8,0.001]
[1754584219803,6.15654242,3836.5,3836.4,0.001]
[1754584220018,21.23528383,3836.5,3836.4,0.001]
[1754584220317,39.14663786,3836.5,3836.4,0.001]
[1754584220711,28.97692984,3836.5,3836.4,0.001]
[1754584220917,29.17099216,3836.5,3836.4,0.001]
[1754584221719,28.97692984,3836.5,3836.4,0.001]
[1754584222343,28.97681501,3836.5,3836.4,0.001]
[1754584223451,28.28983308,3836.5,3836.4,0.001]
[1754584223668,28.73433308,3836.5,3836.4,0.001]
[1754584223871,28.28983308,3836.5,3836.4,0.001]
[1754584225489,24.64399066,3836.5,3836.4,0.001]
[1754584225780,20.64099066,3836.5,3836.4,0.001]
[1754584225993,18.16343663,3836.5,3836.4,0.001]
[1754584226140,21.503,3836.5,3836.4,0.9331]
[1754584226566,18.503,3836.5,3836.4,0.9331]
[1754584226764,21.503,3836.5,3836.4,0.9331]
[1754584227208,18.503,3836.5,3836.4,0.9331]
[1754584227403,14.5,3836.5,3836.4,0.9331]
[1754584227614,18.503,3836.5,3836.4,0.9331]
[1754584228633,14.5,3836.5,3836.4,3.53971036]
[1754584228930,4.003,3836.5,3836.4,1.54774218]
[1754584229108,4.003,3836.5,3836.4,4.15433518]
[1754584229886,4.003,3836.5,3836.4,4.28473518]
[1754584230488,4.003,3836.5,3836.4,0.1314]
[1754584230825,4.1334,3836.5,3836.4,0.9325]
[1754584232325,4.1334,3836.5,3836.4,3.53911036]
[1754584232527,4.1334,3836.5,3836.4,0.9325]
[1754584232884,4.1334,3836.5,3836.4,0.001]
[1754584233119,5.51134,3836.5,3836.4,0.001]
[1754584233429,5.04034,3836.5,3836.4,0.001]
[1754584233595,4.54674,3836.5,3836.4,0.001]
[1754584234479,4.1334,3836.5,3836.4,0.9325]
[1754584234740,18.6334,3836.5,3836.4,0.001]
[1754584236032,18.6334,3836.5,3836.4,0.4529]
[1754584237108,18.6334,3836.5,3836.4,0.001]
[1754584237310,21.0397,3836.5,3836.4,0.001]
[1754584237513,24.66724242,3836.5,3836.4,0.001]
[1754584237826,24.22301009,3836.5,3836.4,0.001]
[1754584238133,28.22601009,3836.5,3836.4,0.001]
[1754584238642,27.75501009,3836.5,3836.4,0.001]
[1754584239132,24.88821767,3836.5,3836.4,0.001]
[1754584239431,24.10486767,3836.5,3836.4,0.001]
[1754584239589,27.20501009,3836.5,3836.4,0.001]
[1754584239783,20.10186767,3836.5,3836.4,0.001]
[1754584239989,21.6334,3836.5,3836.4,0.4529]
[1754584240188,21.6334,3836.5,3836.4,0.9325]
[1754584240407,17.6304,3836.5,3836.4,0.9325]
[1754584240686,21.6334,3836.5,3836.4,0.9325]
[1754584241029,21.6334,3836.5,3836.4,0.001]
[1754584241411,17.6304,3836.5,3836.4,0.001]
[1754584241714,18.6334,3836.5,3836.4,0.9325]
[1754584241918,0.1304,3836.5,3836.4,0.9325]
[1754584242138,0.002,3837.6,3836.4,1.28642374]
[1754584242317,4.003,3837.5,3836.9,2.60625568]
[1754584242522,4.003,3837.5,3837.0,3.53769674]
[1754584242715,4.003,3837.5,3837.1,0.9315]
[1754584242924,4.003,3837.5,3837.0,2.60618932]
[1754584243252,0.1304,3837.3,3837.2,0.4519]
[1754584243420,4.1324,3837.3,3837.2,0.4519]
[1754584243624,4.1324,3837.3,3837.2,3.53756692]
[1754584244011,4.1324,3837.3,3837.2,0.9315]
[1754584244452,4.1324,3837.3,3837.2,3.53756692]
[1754584244609,4.1324,3837.3,3837.2,0.9315]
[1754584245127,4.1324,3837.3,3837.2,3.53756692]
[1754584245314,4.1324,3837.3,3837.2,0.9315]
[1754584246138,18.6324,3837.3,3837.2,0.9315]
[1754584246343,19.19151764,3837.3,3837.2,0.9315]
[1754584246717,19.19151764,3837.3,3837.2,3.53756692]
[1754584247039,4.1324,3837.3,3837.2,3.53756692]
[1754584247506,4.002,3837.3,3837.2,4.15193987]
[1754584247703,0.002,3837.6,3837.5,2.60586319]
[1754584247941,4.004,3837.6,3837.5,2.60586319]
[1754584248145,0.002,3837.6,3837.5,3.66776319]
[1754584248317,0.002,3837.6,3837.5,4.61717798]
[1754584248517,0.002,3837.6,3837.5,3.66776319]
[1754584248912,0.002,3837.6,3837.5,3.53736319]
[1754584250147,0.002,3837.6,3837.1,2.60613369]
[1754584250148,0.4956,3837.6,3837.1,2.60613369]
[1754584250346,4.1324,3837.5,3837.0,2.60617698]
[1754584250541,4.1324,3837.5,3836.8,0.9315]
[1754584250854,4.1324,3837.5,3837.0,2.60619633]
[1754584251021,14.5,3837.4,3837.0,2.60619633]
[1754584251419,0.4936,3837.3,3836.5,0.9315]
[1754584251750,0.1304,3837.1,3836.8,2.60629355]
[1754584251946,0.1304,3837.1,3836.9,2.60624912]
[1754584252160,0.1304,3837.1,3836.7,2.60636142]
[1754584252481,0.624,3837.1,3836.6,3.6683378]
[1754584252641,0.624,3837.1,3836.6,1.0619]
[1754584252975,14.5,3837.0,3836.6,0.5823]
[1754584253176,4.001,3836.9,3836.8,2.60633861]
[1754584253665,4.001,3836.9,3836.8,3.53783861]
[1754584254861,4.001,3836.9,3836.7,2.60639687]
[1754584256033,4.001,3836.9,3836.6,2.73685576]
[1754584256265,4.001,3836.9,3836.7,2.60638629]
[1754584256466,0.9561,3836.8,3836.4,0.001]
[1754584256651,0.1304,3836.5,3836.4,0.001]
[1754584256853,4.1314,3836.5,3836.4,0.001]
[1754584257266,4.625,3836.5,3836.4,0.001]
[1754584258184,4.9469,3836.5,3836.4,0.001]
[1754584258417,8.09634956,3836.5,3836.4,0.001]
[1754584258691,11.65607,3836.5,3836.4,0.001]
[1754584260175,12.20607,3836.5,3836.4,0.001]
[1754584260672,9.59952758,3836.5,3836.4,0.001]
[1754584261078,12.20607,3836.5,3836.4,0.001]
[1754584261672,3.15681421,3836.1,3836.0,0.001]
[1754584261841,24.71703368,3836.1,3836.0,0.001]
[1754584262045,25.25708272,3836.1,3836.0,0.001]
[1754584262295,26.19588272,3836.1,3836.0,0.001]
[1754584262492,22.19488272,3836.1,3836.0,0.001]
[1754584262691,26.19588272,3836.1,3836.0,0.001]
[1754584262842,25.95300058,3836.1,3836.0,0.001]
[1754584263050,12.92375037,3836.1,3836.0,0.001]
[1754584265557,13.02821637,3836.1,3836.0,0.001]
[1754584265760,12.56521637,3836.1,3836.0,0.001]
[1754584265960,13.2707516,3836.1,3836.0,0.001]
[1754584269305,13.27051395,3836.1,3836.0,0.001]
[1754584269914,13.27050777,3836.1,3836.0,0.001]
[1754584271320,13.02821637,3836.1,3836.0,0.001]
[1754584272090,13.27037504,3836.1,3836.0,0.001]
[1754584272290,13.02821637,3836.1,3836.0,0.001]
[1754584272497,26.2995577,3836.1,3836.0,0.001]
[1754584273025,26.2995577,3836.1,3835.6,0.001]
[1754584273026,3.15708605,3835.7,3835.6,0.001]
[1754584273185,11.03549511,3835.7,3835.6,0.001]
[1754584273383,13.2219746,3835.7,3835.6,0.001]
[1754584273593,8.8745746,3835.7,3835.6,0.001]
[1754584273798,9.49755249,3835.7,3835.6,0.9085]